fUSD/lending_fUSD_20250111
["ID","MTS","AMOUNT","RATE_DAILY","PERIOD"]
[348490707,1736577034286,-1043.27,9.998e-05,2]
[348490708,1736577034296,-36449.41961939,9.998e-05,2]
[348490709,1736577034307,-1916.45,9.998e-05,2]
[348490710,1736577034316,-623.82,9.998e-05,2]
[348490711,1736577034326,-827.01,9.998e-05,2]
[348490712,1736577034336,-1013.66,9.998e-05,2]
[348490713,1736577034346,-702.06,9.998e-05,2]
[348490714,1736577034356,-500.0,9.998e-05,2]
[348490715,1736577034366,-500.0,9.998e-05,2]
[348490716,1736577034376,-652.67,9.998e-05,2]
[348490717,1736577034385,-1196.17,9.998e-05,2]
[348490718,1736577034394,-913.7,9.998e-05,2]
[348490719,1736577034404,-1253.54,9.998e-05,2]
[348490720,1736577034413,-844.12,9.998e-05,2]
[348490721,1736577034423,-500.0,9.998e-05,2]
[348490722,1736577034433,-500.0,9.998e-05,2]
[348490723,1736577034442,-538.92,9.998e-05,2]
[348490724,1736577034451,-1646.2,9.998e-05,2]
[348490725,1736577034464,-991.65,9.998e-05,2]
[348490726,1736577034473,-500.0,9.998e-05,2]
[348490727,1736577034482,-500.0,9.998e-05,2]
[348490728,1736577034492,-1595.69,9.998e-05,2]
[348490729,1736577034501,-2055.73,9.998e-05,2]
[348490730,1736577034510,-500.0,9.998e-05,2]
[348490731,1736577034520,-500.0,9.998e-05,2]
[348490732,1736577034530,-500.0,9.998e-05,2]
[348490733,1736577034539,-500.0,9.998e-05,2]
[348490734,1736577034550,-500.0,9.998e-05,2]
[348490735,1736577034561,-500.0,9.998e-05,2]
[348490736,1736577034570,-500.0,9.998e-05,2]
[348490737,1736577034579,-1019.04,9.998e-05,2]
[348490738,1736577034589,-500.0,9.998e-05,2]
[348490739,1736577034599,-694.52,9.998e-05,2]
[348490740,1736577034608,-500.0,9.998e-05,2]
[348490741,1736577034619,-807.793,9.999e-05,2]
[348490742,1736577034629,-500.0,9.999e-05,2]
[348490743,1736577034638,-500.0,9.999e-05,2]
[348490744,1736577034648,-638.33,9.999e-05,2]
[348490745,1736577034658,-500.0,9.999e-05,2]
[348490746,1736577034668,-509.1504064,9.999e-05,2]
[348490747,1736577034678,-500.0,9.999e-05,2]
[348490748,1736577034687,-500.0,9.999e-05,2]
[348490749,1736577034696,-500.0,9.999e-05,2]
[348490750,1736577034706,-500.0,9.999e-05,2]
[348490751,1736577034716,-500.0,9.999e-05,2]
[348490752,1736577034726,-500.0,9.999e-05,2]
[348490753,1736577034736,-276.86238453,9.999e-05,2]
[348490754,1736577034746,-917.87,9.999e-05,2]
[348490755,1736577034756,-500.0,9.999e-05,2]
[348490756,1736577034765,-500.0,9.999e-05,2]
[348490757,1736577034775,-500.0,9.999e-05,2]
[348490758,1736577034784,-500.0,9.999e-05,2]
[348490759,1736577034794,-500.0,9.999e-05,2]
[348490760,1736577034803,-1508.04,9.999e-05,2]
[348490761,1736577034813,-2676.17,9.999e-05,2]
[348490762,1736577034823,-500.0,9.999e-05,2]
[348490763,1736577034832,-500.0,9.999e-05,2]
[348490764,1736577034841,-500.0,9.999e-05,2]
[348490765,1736577034851,-617.25,9.999e-05,2]
[348490766,1736577034861,-550.29,9.999e-05,2]
[348490767,1736577034870,-500.0,9.999e-05,2]
[348490768,1736577034880,-500.0,9.999e-05,2]
[348490769,1736577034889,-500.0,9.999e-05,2]
[348490770,1736577034899,-543.85,9.999e-05,2]
[348490771,1736577034908,-500.0,9.999e-05,2]
[348490772,1736577034918,-500.0,9.999e-05,2]
[348490773,1736577034927,-401.74177044,9.999e-05,2]
[348490774,1736577034938,-500.0,9.999e-05,2]
[348490775,1736577034947,-500.0,9.999e-05,2]
[348490776,1736577034956,-500.0,9.999e-05,2]
[348490777,1736577034966,-959.09,9.999e-05,2]
[348490778,1736577034975,-500.0,9.999e-05,2]
[348490779,1736577034984,-500.0,9.999e-05,2]
[348490780,1736577034993,-500.0,9.999e-05,2]
[348490781,1736577035002,-500.0,9.999e-05,2]
[348490782,1736577035011,-500.0,9.999e-05,2]
[348490783,1736577035020,-482.122,9.999e-05,2]
[348490784,1736577035030,-500.0,9.999e-05,2]
[348490785,1736577035039,-500.0,9.999e-05,2]
[348490786,1736577035049,-500.0,9.999e-05,2]
[348490787,1736577035059,-560.72,9.999e-05,2]
[348490788,1736577035069,-1461.84,9.999e-05,2]
[348490789,1736577035079,-500.0,9.999e-05,2]
[348490790,1736577035087,-468.65111421,9.999e-05,2]
[348490791,1736577035101,-31.34888579,9.999e-05,2]
[348490792,1736577035111,-500.0,9.999e-05,2]
[348490793,1736577035120,-500.0,9.999e-05,2]
[348490794,1736577035130,-450.939298,9.999e-05,2]
[348490795,1736577035140,-500.0,9.999e-05,2]
[348490796,1736577035149,-500.0,9.999e-05,2]
[348490797,1736577035159,-500.0,9.999e-05,2]
[348490798,1736577035168,-500.0,9.999e-05,2]
[348490799,1736577035178,-1594.77,9.999e-05,2]
[348490800,1736577035187,-1520.82,9.999e-05,2]
[348490801,1736577035197,-319.777049,9.999e-05,2]
[348490802,1736577035206,-500.0,9.999e-05,2]
[348490803,1736577035216,-719.45,9.999e-05,2]
[348490804,1736577035225,-500.0,9.999e-05,2]
[348490805,1736577035235,-509.98666122,9.999e-05,2]
[348490806,1736577035244,-500.0,9.999e-05,2]
[348490807,1736577035254,-500.0,9.999e-05,2]
[348490808,1736577035264,-500.0,9.999e-05,2]
[348490809,1736577035274,-156.484712,9.999e-05,2]
[348490810,1736577035283,-748.09,9.999e-05,2]
[348490811,1736577035293,-582.69589797,9.999e-05,2]
[348490812,1736577035302,-156.900602,9.999e-05,2]
[348490813,1736577035312,-500.80802927,9.999e-05,2]
[348490814,1736577035322,-500.0,9.999e-05,2]
[348490815,1736577035331,-283.97837944,9.999e-05,2]
[348490816,1736577035341,-500.0,9.999e-05,2]
[348490817,1736577035350,-500.0,9.999e-05,2]
[348490818,1736577035360,-500.0,9.999e-05,2]
[348490819,1736577035369,-500.0,9.999e-05,2]
[348490820,1736577035380,-506.4805156,9.999e-05,2]
[348490821,1736577035389,-789.1,9.999e-05,2]
[348490822,1736577035399,-863.13,9.999e-05,2]
[348490823,1736577035409,-500.0,9.999e-05,2]
[348490824,1736577035419,-1914.06,9.999e-05,2]
[348490825,1736577035429,-500.0,9.999e-05,2]
[348490826,1736577035438,-500.0,9.999e-05,2]
[348490827,1736577035448,-500.0,9.999e-05,2]
[348490828,1736577035460,-572.64,9.999e-05,2]
[348490829,1736577035469,-500.0,9.999e-05,2]
[348490830,1736577035479,-500.0,9.999e-05,2]
[348490831,1736577035489,-1725.12,9.999e-05,2]
[348490832,1736577035498,-1126.55,9.999e-05,2]
[348490833,1736577035507,-386.56388337,9.999e-05,2]
[348490834,1736577035517,-595.29,9.999e-05,2]
[348490835,1736577035527,-1311.2,9.999e-05,2]
[348490836,1736577035537,-822.2,9.999e-05,2]
[348490837,1736577035547,-3214.46,9.999e-05,2]
[348490838,1736577035556,-500.0,9.999e-05,2]
[348490839,1736577035566,-500.0,9.999e-05,2]
[348490840,1736577035576,-500.0,9.999e-05,2]
[348490841,1736577035585,-500.0,9.999e-05,2]
[348490842,1736577035594,-736.37,9.999e-05,2]
[348490843,1736577035604,-500.0,9.999e-05,2]
[348490844,1736577035614,-500.0,9.999e-05,2]
[348490845,1736577035624,-628.36,9.999e-05,2]
[348490846,1736577035633,-785.05,9.999e-05,2]
[348490847,1736577035643,-500.0,9.999e-05,2]
[348490848,1736577035653,-500.0,9.999e-05,2]
[348490849,1736577035662,-687.16,9.999e-05,2]
[348490850,1736577035672,-1905.06,9.999e-05,2]
[348490851,1736577035682,-592.55,9.999e-05,2]
[348490852,1736577035692,-500.0,9.999e-05,2]
[348490853,1736577035701,-500.0,9.999e-05,2]
[348490854,1736577035711,-1723.42,9.999e-05,2]
[348490855,1736577035721,-500.0,9.999e-05,2]
[348490856,1736577035731,-500.0,9.999e-05,2]
[348490857,1736577035742,-1078.34,9.999e-05,2]
[348490858,1736577035754,-500.0,9.999e-05,2]
[348490859,1736577035765,-1592.55,9.999e-05,2]
[348490860,1736577035775,-500.0,9.999e-05,2]
[348490861,1736577035784,-500.0,9.999e-05,2]
[348490862,1736577035794,-1884.14,9.999e-05,2]
[348490863,1736577035804,-500.0,9.999e-05,2]
[348490864,1736577035814,-523.38,9.999e-05,2]
[348490865,1736577035824,-1624.74,9.999e-05,2]
[348490866,1736577035834,-500.0,9.999e-05,2]
[348490867,1736577035844,-639.71,9.999e-05,2]
[348490868,1736577035855,-390.86329046,9.999e-05,2]
[348490869,1736577035864,-500.0,9.999e-05,2]
[348490870,1736577035874,-1105.8,9.999e-05,2]
[348490871,1736577035884,-500.0,9.999e-05,2]
[348490872,1736577035893,-1205.97,9.999e-05,2]
[348490873,1736577035903,-277.6822651,9.999e-05,2]
[348490874,1736577035913,-500.0,9.999e-05,2]
[348490875,1736577035923,-500.0,9.999e-05,2]
[348490876,1736577035932,-754.23,9.999e-05,2]
[348490877,1736577035942,-500.0,9.999e-05,2]
[348490878,1736577035951,-682.29,9.999e-05,2]
[348490879,1736577035961,-500.0,9.999e-05,2]
[348490880,1736577035970,-500.0,9.999e-05,2]
[348490881,1736577035979,-500.0,9.999e-05,2]
[348490882,1736577035989,-1033.99,9.999e-05,2]
[348490883,1736577035998,-983.0,0.0001,2]
[348490884,1736577036008,-10593.28420298,0.0001,2]
[348490885,1736577036017,-102369.72739216,0.0001,2]
[348490886,1736577036029,-1000.0,0.0001,2]
[348490887,1736577036041,-1322.22029579,0.0001,2]
[348490890,1736577038288,-500.0,9.998e-05,2]
[348490891,1736577038298,-973.39,9.998e-05,2]
[348490892,1736577038307,-19979.89928592,0.0001,2]
[348490893,1736577038316,-125066.43229639,0.0001,2]
[348490894,1736577038327,-6834.46249233,0.0001,2]
[348490895,1736577038458,-21172.92243047,0.0001,2]
[348490896,1736577038472,-1142.11724043,0.0001,2]
[348490913,1736577040521,-7970.41319983,0.0001,2]
[348490914,1736577040600,-944.7,0.0001,2]
[348490916,1736577043392,-570.48,9.998e-05,2]
[348490917,1736577043402,-919.13,9.998e-05,2]
[348490918,1736577043413,-537.35,9.999e-05,2]
[348490919,1736577043423,-7286.90758127,0.0001,2]
[348490920,1736577043435,-270515.71775455,0.0001,2]
[348490921,1736577043444,-10528.24264942,0.0001,2]
[348490922,1736577043454,-680.0,0.0001,2]
[348490923,1736577043466,-1002.2894,0.0001,2]
[348490924,1736577043476,-218.0,0.0001,2]
[348490925,1736577043485,-4045.78052984,0.0001,2]
[348490926,1736577043495,-9043.84693569,0.0001,2]
[348490927,1736577043504,-151.466874,0.0001,2]
[348490928,1736577043514,-151.0,0.0001,2]
[348490929,1736577043523,-151.0,0.0001,2]
[348490930,1736577043533,-164.6325614,0.0001,2]
[348490931,1736577043543,-151.0,0.0001,2]
[348490932,1736577043553,-151.0,0.0001,2]
[348490933,1736577043562,-151.0,0.0001,2]
[348490934,1736577043571,-183.61708795,0.0001,2]
[348490935,1736577043581,-481723.54086094,0.0001,2]
[348490936,1736577043592,-4221.1200169,0.0001,2]
[348490937,1736577043603,-340.63501888,0.0001,2]
[348490938,1736577043615,-2577.3096841,0.0001,2]
[348490966,1736577046348,-826.0,0.0001,2]
[348490967,1736577046358,-48247.53940085,0.0001,2]
[348490968,1736577046502,-1663.391616,0.0001,2]
[348490969,1736577046519,-5377.46602581,0.0001,2]
[348490970,1736577046531,-4811.91887771,0.0001,2]
[348490971,1736577319344,853.06,8.219e-05,2]
[348490975,1736578190137,862.72,8.219e-05,2]
[348490980,1736578231844,-1058.0,8.6e-05,2]
[348490981,1736578231854,-1058.0,8.6e-05,2]
[348490982,1736578231863,-1010.01345549,8.705e-05,2]
[348490983,1736578231875,-47.98654451,8.705e-05,2]
[348490984,1736578231884,-1000.0,8.838e-05,2]
[348490985,1736578231893,-577.71821327,9.163e-05,2]
[348490986,1736578231904,-480.28178673,9.163e-05,2]
[348490987,1736578231913,-336.73,9.25e-05,2]
[348490988,1736578231922,-187.99783218,9.297e-05,2]
[348490989,1736578231973,-62.00216782,9.297e-05,2]
[348490990,1736578231982,-232.406,9.5e-05,2]
[348490991,1736578231992,-705.0,9.606e-05,2]
[348490992,1736578232002,-1058.0,9.645e-05,2]
[348490993,1736578232011,-300.0,9.652e-05,2]
[348490994,1736578232021,-150.0,9.653e-05,2]
[348490995,1736578232030,-150.0,9.656e-05,2]
[348490996,1736578232039,-150.0,9.663e-05,2]
[348490997,1736578232049,-150.0,9.666e-05,2]
[348490998,1736578232058,-150.0,9.696e-05,2]
[348490999,1736578232068,-150.0,9.723e-05,2]
[348491000,1736578232078,-150.0,9.725e-05,2]
[348491001,1736578232089,-150.0,9.73e-05,2]
[348491002,1736578232099,-150.0,9.732e-05,2]
[348491004,1736578232108,-150.0,9.734e-05,2]
[348491006,1736578232118,-150.0,9.734e-05,2]
[348491008,1736578232127,-1500.0,9.735e-05,2]
[348491010,1736578232137,-150.0,9.742e-05,2]
[348491012,1736578232146,-150.0,9.765e-05,2]
[348491014,1736578232155,-150.0,9.767e-05,2]
[348491016,1736578232164,-150.0,9.786e-05,2]
[348491018,1736578232173,-150.0,9.792e-05,2]
[348491020,1736578232182,-150.0,9.794e-05,2]
[348491021,1736578232191,-150.0,9.796e-05,2]
[348491023,1736578232200,-150.0,9.8e-05,2]
[348491025,1736578232210,-150.0,9.82e-05,2]
[348491027,1736578232219,-150.0,9.831e-05,2]
[348491029,1736578232229,-150.0,9.833e-05,2]
[348491031,1736578232239,-150.0,9.84e-05,2]
[348491033,1736578232248,-150.0,9.843e-05,2]
[348491035,1736578232258,-150.0,9.849e-05,2]
[348491037,1736578232268,-150.0,9.852e-05,2]
[348491039,1736578232278,-150.0,9.856e-05,2]
[348491041,1736578232287,-150.0,9.871e-05,2]
[348491043,1736578232296,-150.0,9.875e-05,2]
[348491045,1736578232308,-150.0,9.878e-05,2]
[348491047,1736578232317,-150.0,9.879e-05,2]
[348491049,1736578232326,-150.0,9.88e-05,2]
[348491051,1736578232336,-150.0,9.881e-05,2]
[348491053,1736578232345,-150.0,9.886e-05,2]
[348491055,1736578232355,-150.0,9.898e-05,2]
[348491057,1736578232364,-150.0,9.902e-05,2]
[348491059,1736578232373,-150.0,9.907e-05,2]
[348491061,1736578232383,-150.0,9.91e-05,2]
[348491063,1736578232393,-150.0,9.912e-05,2]
[348491064,1736578232402,-1500.0,9.936e-05,2]
[348491066,1736578232411,-1000.0,9.943e-05,2]
[348491068,1736578232420,-150.0,9.991e-05,2]
[348491070,1736578232430,-207.65423537,9.991e-05,2]
[348491072,1736578232439,-173.26600975,9.992e-05,2]
[348491074,1736578232448,-6344.1072281,9.992e-05,2]
[348491076,1736578232458,-704.9008031,9.992e-05,2]
[348491077,1736578232467,-2913.155953,9.992e-05,2]
[348491078,1736578232476,-646.235,9.993e-05,2]
[348491079,1736578232486,-150.0,9.997e-05,2]
[348491080,1736578232495,-237.11856806,9.998e-05,2]
[348491081,1736578232504,-658.53,9.998e-05,2]
[348491082,1736578232513,-500.0,9.998e-05,2]
[348491083,1736578232523,-723.98,9.998e-05,2]
[348491084,1736578232532,-613.06,9.998e-05,2]
[348491085,1736578232541,-263.28104079,9.998e-05,2]
[348491087,1736578232550,-949.62,9.998e-05,2]
[348491089,1736578232559,-500.0,9.998e-05,2]
[348491091,1736578232568,-500.0,9.998e-05,2]
[348491093,1736578232581,-874.67,9.998e-05,2]
[348491095,1736578232591,-801.78,9.998e-05,2]
[348491097,1736578232600,-500.0,9.998e-05,2]
[348491099,1736578232610,-500.0,9.998e-05,2]
[348491101,1736578232618,-500.0,9.998e-05,2]
[348491103,1736578232627,-572.5,9.998e-05,2]
[348491105,1736578232636,-500.0,9.998e-05,2]
[348491107,1736578232645,-653.86,9.998e-05,2]
[348491109,1736578232654,-500.0,9.998e-05,2]
[348491110,1736578232663,-500.0,9.998e-05,2]
[348491112,1736578232672,-500.0,9.998e-05,2]
[348491114,1736578232682,-1603.51,9.998e-05,2]
[348491116,1736578232691,-500.0,9.998e-05,2]
[348491118,1736578232700,-500.0,9.998e-05,2]
[348491120,1736578232710,-500.0,9.998e-05,2]
[348491122,1736578232719,-500.0,9.998e-05,2]
[348491124,1736578232729,-928.70163621,9.998e-05,2]
[348491126,1736578232739,-500.0,9.998e-05,2]
[348491128,1736578232757,-500.0,9.998e-05,2]
[348491130,1736578232766,-877.36,9.998e-05,2]
[348491131,1736578232776,-611.73,9.998e-05,2]
[348491132,1736578232785,-1191.7,9.998e-05,2]
[348491133,1736578232795,-879.62,9.998e-05,2]
[348491134,1736578232804,-2095.54,9.998e-05,2]
[348491135,1736578232813,-1445.2,9.998e-05,2]
[348491136,1736578232823,-514.51064927,9.998e-05,2]
[348491137,1736578232833,-2564.66,9.998e-05,2]
[348491138,1736578232842,-756.22,9.998e-05,2]
[348491139,1736578232851,-999.8,9.998e-05,2]
[348491140,1736578232861,-569.61,9.998e-05,2]
[348491141,1736578232870,-500.0,9.998e-05,2]
[348491142,1736578232879,-705.68,9.998e-05,2]
[348491143,1736578232889,-500.0,9.998e-05,2]
[348491144,1736578232898,-500.0,9.998e-05,2]
[348491145,1736578232907,-500.0,9.998e-05,2]
[348491146,1736578232917,-1523.58,9.998e-05,2]
[348491147,1736578232926,-597.83,9.998e-05,2]
[348491148,1736578232935,-1155.72,9.998e-05,2]
[348491149,1736578232944,-500.0,9.998e-05,2]
[348491150,1736578232953,-500.0,9.998e-05,2]
[348491151,1736578232962,-950.33,9.998e-05,2]
[348491152,1736578232971,-500.0,9.999e-05,2]
[348491153,1736578232981,-580.91977214,9.999e-05,2]
[348491154,1736578232990,-500.0,9.999e-05,2]
[348491155,1736578232999,-557.37819633,9.999e-05,2]
[348491156,1736578233008,-500.0,9.999e-05,2]
[348491157,1736578233018,-500.0,9.999e-05,2]
[348491158,1736578233027,-500.0,9.999e-05,2]
[348491159,1736578233037,-500.0,9.999e-05,2]
[348491160,1736578233046,-500.0,9.999e-05,2]
[348491161,1736578233056,-500.0,9.999e-05,2]
[348491162,1736578233068,-521.19,9.999e-05,2]
[348491163,1736578233077,-591.53,9.999e-05,2]
[348491164,1736578233086,-500.0,9.999e-05,2]
[348491165,1736578233096,-500.0,9.999e-05,2]
[348491166,1736578233106,-500.0,9.999e-05,2]
[348491167,1736578233115,-500.0,9.999e-05,2]
[348491168,1736578233124,-475.97508285,9.999e-05,2]
[348491169,1736578233134,-500.0,9.999e-05,2]
[348491170,1736578233143,-500.0,9.999e-05,2]
[348491171,1736578233153,-875.63,9.999e-05,2]
[348491172,1736578233163,-500.0,9.999e-05,2]
[348491173,1736578233173,-500.0,9.999e-05,2]
[348491174,1736578233183,-500.0,9.999e-05,2]
[348491175,1736578233193,-500.0,9.999e-05,2]
[348491176,1736578233204,-500.0,9.999e-05,2]
[348491177,1736578233213,-625.47,9.999e-05,2]
[348491178,1736578233222,-500.0,9.999e-05,2]
[348491179,1736578233233,-500.0,9.999e-05,2]
[348491180,1736578233243,-500.0,9.999e-05,2]
[348491181,1736578233253,-402.2680081,9.999e-05,2]
[348491183,1736578237642,-97.7319919,9.999e-05,2]
[348491184,1736578237652,-500.0,9.999e-05,2]
[348491185,1736578237661,-500.0,9.999e-05,2]
[348491186,1736578237670,-500.0,9.999e-05,2]
[348491187,1736578237680,-500.0,9.999e-05,2]
[348491188,1736578237689,-1970.07,9.999e-05,2]
[348491189,1736578237699,-500.0,9.999e-05,2]
[348491190,1736578237708,-500.0,9.999e-05,2]
[348491191,1736578237717,-289.55,9.999e-05,2]
[348491192,1736578237727,-500.0,9.999e-05,2]
[348491193,1736578237736,-500.0,9.999e-05,2]
[348491194,1736578237746,-880.83,9.999e-05,2]
[348491200,1736578237755,-500.0,9.999e-05,2]
[348491201,1736578237972,-500.0,9.999e-05,2]
[348491203,1736578237981,-932.83,9.999e-05,2]
[348491205,1736578237991,-589.48229218,9.999e-05,2]
[348491207,1736578238001,-500.0,9.999e-05,2]
[348491209,1736578238010,-1400.93,9.999e-05,2]
[348491210,1736578238019,-443.33036048,9.999e-05,2]
[348491211,1736578238027,-500.0,9.999e-05,2]
[348491212,1736578238037,-1529.2,9.999e-05,2]
[348491213,1736578238047,-546.71,9.999e-05,2]
[348491214,1736578238056,-500.0,9.999e-05,2]
[348491215,1736578238066,-1256.56,9.999e-05,2]
[348491216,1736578238075,-689.48,9.999e-05,2]
[348491217,1736578238085,-220.5537347,9.999e-05,2]
[348491218,1736578238095,-500.0,9.999e-05,2]
[348491219,1736578238104,-3080.52,9.999e-05,2]
[348491220,1736578238114,-695.78,9.999e-05,2]
[348491221,1736578238124,-787.94,9.999e-05,2]
[348491222,1736578238134,-500.0,9.999e-05,2]
[348491223,1736578238144,-500.0,9.999e-05,2]
[348491224,1736578238152,-500.0,9.999e-05,2]
[348491225,1736578238161,-716.92,9.999e-05,2]
[348491226,1736578238171,-500.0,9.999e-05,2]
[348491227,1736578238180,-514.96,9.999e-05,2]
[348491228,1736578238190,-567.86,9.999e-05,2]
[348491229,1736578238200,-672.81,9.999e-05,2]
[348491230,1736578238209,-500.0,9.999e-05,2]
[348491231,1736578238219,-306.453005,9.999e-05,2]
[348491232,1736578238228,-1825.69,9.999e-05,2]
[348491233,1736578238238,-469.34621124,9.999e-05,2]
[348491234,1736578238248,-1651.61,9.999e-05,2]
[348491235,1736578238257,-1033.41,9.999e-05,2]
[348491236,1736578238266,-827.16,9.999e-05,2]
[348491237,1736578238276,-500.0,9.999e-05,2]
[348491238,1736578238285,-432.150161,9.999e-05,2]
[348491239,1736578238295,-1756.15,9.999e-05,2]
[348491240,1736578238308,-1805.64,9.999e-05,2]
[348491241,1736578238323,-1201.31,9.999e-05,2]
[348491242,1736578238333,-1526.19,9.999e-05,2]
[348491243,1736578238342,-501.57,9.999e-05,2]
[348491244,1736578238352,-808.95,9.999e-05,2]
[348491245,1736578238363,-500.0,9.999e-05,2]
[348491246,1736578238373,-516.47,9.999e-05,2]
[348491247,1736578238384,-1557.04,9.999e-05,2]
[348491248,1736578238393,-500.0,9.999e-05,2]
[348491249,1736578238405,-500.0,9.999e-05,2]
[348491250,1736578238415,-500.0,9.999e-05,2]
[348491251,1736578238424,-1653.24,9.999e-05,2]
[348491252,1736578238434,-1577.61,9.999e-05,2]
[348491253,1736578238443,-1059.73,9.999e-05,2]
[348491254,1736578238452,-500.0,9.999e-05,2]
[348491255,1736578238461,-500.0,9.999e-05,2]
[348491256,1736578238471,-792.56,9.999e-05,2]
[348491257,1736578238480,-500.0,9.999e-05,2]
[348491258,1736578238490,-500.0,9.999e-05,2]
[348491259,1736578238500,-500.0,9.999e-05,2]
[348491260,1736578238510,-722.81,9.999e-05,2]
[348491261,1736578238519,-500.0,9.999e-05,2]
[348491262,1736578238528,-500.0,9.999e-05,2]
[348491263,1736578238538,-976.58,9.999e-05,2]
[348491264,1736578238547,-971.42,9.999e-05,2]
[348491265,1736578238556,-500.0,9.999e-05,2]
[348491266,1736578238566,-1834.3,9.999e-05,2]
[348491267,1736578238575,-752.34,9.999e-05,2]
[348491268,1736578238584,-500.0,9.999e-05,2]
[348491269,1736578238594,-500.0,9.999e-05,2]
[348491270,1736578238603,-1079.61,9.999e-05,2]
[348491271,1736578238612,-393.77632932,9.999e-05,2]
[348491272,1736578238622,-425968.87340959,0.0001,2]
[348491273,1736578238895,-500.0,9.999e-05,2]
[348491274,1736578238905,-6584.55719837,0.0001,2]
[348491275,1736578238917,-539.34332047,0.0001,2]
[348491276,1736578239711,-487.46,0.0001,2]
[348491277,1736578239744,-14987.38704013,0.0001,2]
[348491278,1736578239860,-391.36205656,0.0001,2]
[348491279,1736578239872,-610.264,0.0001,2]
[348491280,1736578239999,-54859.05178952,0.0001,2]
[348491281,1736578240011,-86952.31357687,0.0001,2]
[348491282,1736578240097,-49571.51380398,0.0001,2]
[348491283,1736578240107,-151.0,0.0001,2]
[348491284,1736578240116,-151.0,0.0001,2]
[348491285,1736578240126,-151.0,0.0001,2]
[348491287,1736578240135,-3000.0,0.0001,2]
[348491289,1736578240145,-200.0,0.0001,3]
[348491291,1736578240155,-365.0,0.0001,2]
[348491293,1736578240165,-1832.616,0.0001,2]
[348491294,1736578240174,-1000.0,0.0001,2]
[348491296,1736578240184,-2215.6479,0.0001,2]
[348491298,1736578240193,-153.97321038,0.0001,2]
[348491300,1736578240203,-231.0,0.0001,2]
[348491302,1736578240212,-1039.8238,0.0001,2]
[348491304,1736578240221,-301.07984809,0.0001,2]
[348491306,1736578240231,-13061.76444035,0.0001,3]
[348491308,1736578240241,-320.97030687,0.0001,2]
[348491310,1736578240254,-320.97030675,0.00010003,2]
[348491312,1736578240264,-155.22,0.00010036,2]
[348491314,1736578240274,-320.97030675,0.00010107,2]
[348491316,1736578240284,-404.87,0.00010137,2]
[348491318,1736578240293,-477.49,0.00010137,2]
[348491321,1736578240303,-153.97321035,0.0001014,2]
[348491323,1736578240317,-1058.0,0.00010153,2]
[348491325,1736578240327,-1269.784,0.00010164,2]
[348491327,1736578240336,-2019.264,0.00010164,2]
[348491329,1736578240346,-150.233,0.00010164,2]
[348491330,1736578240356,-634.0,0.00010164,2]
[348491332,1736578240365,-566.0,0.00010164,2]
[348491334,1736578240374,-1860.0,0.00010164,2]
[348491336,1736578240385,-821.0,0.00010164,2]
[348491338,1736578240394,-2944.0,0.00010164,2]
[348491340,1736578240404,-1258.0,0.00010164,2]
[348491342,1736578240414,-920.718,0.00010164,2]
[348491344,1736578240423,-538.08,0.00010164,2]
[348491346,1736578240433,-3986.628,0.00010164,2]
[348491348,1736578240442,-1173.0,0.00010164,2]
[348491350,1736578240451,-9626.0,0.00010164,2]
[348491352,1736578240460,-150.0,0.00010164,2]
[348491354,1736578240469,-3896.0,0.00010164,2]
[348491356,1736578240478,-410.4737973,0.00010167,2]
[348491358,1736578240488,-320.97030675,0.0001021,2]
[348491360,1736578240498,-658.53,0.00010272,2]
[348491362,1736578240507,-500.0,0.00010272,2]
[348491364,1736578240516,-218.0,0.00010272,2]
[348491366,1736578240526,-723.98,0.00010272,2]
[348491368,1736578240535,-613.06,0.00010272,2]